bitfinex-derivatives/quotes_BTCF0:USTF0_20250602
["timestamp","ask_amount","ask_price","bid_price","bid_amount"]
[1748905693877,0.0775,105800.0,105790.0,1.6341946]
[1748905694479,0.2664492,105800.0,105790.0,1.6341946]
[1748905694677,0.2664492,105800.0,105790.0,1.2733946]
[1748905695083,0.0775,105800.0,105790.0,1.2733946]
[1748905695381,0.0002,105800.0,105790.0,1.81181483]
[1748905696789,0.0406,105800.0,105790.0,1.81181483]
[1748905697089,0.0784,105800.0,105790.0,1.81181483]
[1748905697792,0.0784,105800.0,105790.0,1.6341946]
[1748905697995,0.2673493,105800.0,105790.0,1.81181483]
[1748905698188,0.2673493,105800.0,105790.0,1.6341946]
[1748905698189,0.0784,105800.0,105790.0,1.6341946]
[1748905698402,0.1891493,105800.0,105790.0,0.7438346]
[1748905698591,0.1891493,105800.0,105790.0,1.2694346]
[1748905698592,0.2645493,105800.0,105790.0,1.2694346]
[1748905698889,0.0756,105800.0,105790.0,1.2694346]
[1748905699095,0.0756,105800.0,105790.0,1.80785483]
[1748905699583,0.0756,105800.0,105790.0,2.87965483]
[1748905699784,0.0756,105800.0,105790.0,2.7020346]
[1748905699984,0.0756,105800.0,105790.0,2.87965483]
[1748905700186,0.0756,105800.0,105790.0,2.7020346]
[1748905701082,0.0756,105800.0,105790.0,2.87965483]
[1748905701986,0.09431052,105800.0,105790.0,2.87044225]
[1748905702295,0.28325982,105800.0,105790.0,2.87308225]
[1748905703788,0.28325982,105800.0,105790.0,2.51228225]
[1748905704095,0.0756,105800.0,105790.0,2.33466202]
[1748905704389,0.0002,105800.0,105790.0,2.87308225]
[1748905704595,0.26872646,105810.0,105800.0,0.1889493]
[1748905704895,0.26872646,105810.0,105800.0,0.6436493]
[1748905705094,0.26872646,105810.0,105800.0,0.417]
[1748905705396,0.26872646,105810.0,105800.0,1.0971093]
[1748905706995,0.26872646,105810.0,105800.0,1.17203389]
[1748905709483,0.62952646,105810.0,105800.0,0.49858692]
[1748905709689,0.80714669,105810.0,105800.0,1.17782692]
[1748905709888,0.80714669,105810.0,105800.0,1.13416459]
[1748905710188,0.80714669,105810.0,105800.0,1.32311389]
[1748905710692,0.62952646,105810.0,105800.0,1.32311389]
[1748905711398,0.62952646,105810.0,105800.0,1.32307389]
[1748905711589,0.62952646,105810.0,105800.0,1.36673622]
[1748905712194,0.62952646,105810.0,105800.0,1.32307389]
[1748905712399,0.62952646,105810.0,105800.0,0.60700459]
[1748905712693,0.62952646,105810.0,105800.0,1.32239389]
[1748905713400,0.75947323,105810.0,105800.0,1.32239389]
[1748905714197,0.62952646,105810.0,105800.0,1.32239389]
[1748905714499,0.75947323,105810.0,105800.0,1.36626868]
[1748905714691,0.76372277,105810.0,105800.0,1.36626868]
[1748905715191,0.76372277,105810.0,105800.0,1.42425458]
[1748905715996,0.76372277,105810.0,105800.0,1.38037979]
[1748905716195,0.76372277,105810.0,105800.0,1.42427721]
[1748905717296,0.4448444,105810.0,105800.0,1.51032656]
[1748905717595,0.6339759,105810.0,105800.0,1.58712656]
[1748905717899,0.62972636,105810.0,105800.0,1.00270066]
[1748905718194,0.62972636,105810.0,105800.0,1.52642066]
[1748905718400,0.62972636,105810.0,105800.0,1.56752066]
[1748905718898,0.6339759,105810.0,105800.0,1.56752066]
[1748905719097,0.4450444,105810.0,105800.0,1.56688066]
[1748905719303,0.6339759,105810.0,105800.0,1.43693389]
[1748905720304,0.6339759,105810.0,105800.0,1.35823389]
[1748905721198,0.6339759,105810.0,105800.0,0.92318997]
[1748905721394,0.6339759,105810.0,105800.0,1.48858997]
[1748905721803,0.6339759,105810.0,105800.0,1.48870997]
[1748905722309,0.6339759,105810.0,105800.0,1.48950997]
[1748905722910,0.62972636,105810.0,105800.0,1.48950997]
[1748905723907,0.6339759,105810.0,105800.0,1.48950997]
[1748905725610,0.6339759,105810.0,105800.0,1.40147389]
[1748905726108,0.6339759,105810.0,105800.0,1.48427757]
[1748905726610,0.6339759,105810.0,105800.0,1.40147389]
[1748905726811,0.6339759,105810.0,105800.0,1.40119389]
[1748905728208,0.6339759,105810.0,105800.0,0.95855757]
[1748905728407,0.6339759,105810.0,105800.0,1.40027389]
[1748905728606,0.6339759,105810.0,105800.0,1.48307757]
[1748905728809,0.6339759,105810.0,105800.0,1.40027389]
[1748905729013,0.76392267,105810.0,105800.0,0.68680459]
[1748905729314,0.76392267,105810.0,105800.0,1.39984389]
[1748905729807,0.6339759,105810.0,105800.0,1.39984389]
[1748905730412,0.76392267,105810.0,105800.0,1.35844389]
[1748905730601,0.76392267,105810.0,105800.0,1.44124757]
[1748905731005,0.76392267,105810.0,105800.0,1.48889449]
[1748905731214,0.76392267,105810.0,105800.0,1.35844389]
[1748905731410,0.76392267,105810.0,105800.0,0.83500389]
[1748905731711,0.6339759,105810.0,105800.0,1.42646757]
[1748905732412,0.6339759,105810.0,105800.0,1.47411639]
[1748905732810,0.6339759,105810.0,105800.0,1.51321639]
[1748905733011,0.6339759,105810.0,105800.0,1.38276389]
[1748905733208,0.6339759,105810.0,105800.0,1.46556757]
[1748905733404,0.6339759,105810.0,105800.0,1.38276389]
[1748905733608,0.6339759,105810.0,105800.0,1.46556757]
[1748905733807,0.6339759,105810.0,105800.0,1.51321477]
[1748905735511,0.6339759,105810.0,105800.0,1.51321135]
[1748905735910,0.6339759,105810.0,105800.0,1.38276389]
[1748905738411,0.6339759,105810.0,105800.0,1.47084883]
[1748905739031,0.0065444,105810.0,105800.0,1.0779556]
[1748905739217,0.0063444,105810.0,105800.0,1.9573956]
[1748905739415,0.0065444,105810.0,105800.0,2.01278492]
[1748905739720,0.0065444,105810.0,105800.0,1.84123722]
[1748905739721,0.0063444,105810.0,105800.0,1.84123722]
[1748905740019,0.1954758,105810.0,105800.0,1.97118399]
[1748905740221,0.1954758,105810.0,105800.0,1.84123722]
[1748905740408,0.5562758,105810.0,105800.0,0.96869648]
[1748905740610,0.5562758,105810.0,105800.0,0.70780389]
[1748905740916,0.6713758,105810.0,105800.0,1.37720389]
[1748905741413,0.6713758,105810.0,105800.0,0.70780389]
[1748905741613,0.6713758,105810.0,105800.0,1.46534884]
[1748905743015,0.6713758,105810.0,105800.0,1.46434884]
[1748905743516,0.3105758,105810.0,105800.0,1.46434884]
[1748905743723,0.6713758,105810.0,105800.0,1.46434884]
[1748905743912,0.32967869,105810.0,105800.0,1.46425919]
[1748905744217,0.21457869,105810.0,105800.0,1.59420596]
[1748905744620,0.57517869,105810.0,105800.0,1.46425919]
[1748905744824,0.57537869,105810.0,105800.0,1.46425919]
[1748905745522,0.57537869,105810.0,105800.0,1.59340596]
[1748905745720,0.57537869,105810.0,105800.0,1.07696596]
[1748905745916,0.5562758,105810.0,105800.0,1.59340596]
[1748905746628,0.5562758,105810.0,105800.0,1.46345919]
[1748905746822,0.5562758,105810.0,105800.0,0.94701919]
[1748905747319,0.5562758,105810.0,105800.0,1.46253919]
[1748905748025,0.5562758,105810.0,105800.0,0.94701919]
[1748905748424,0.5562758,105810.0,105800.0,1.59192596]
[1748905750323,0.5562758,105810.0,105800.0,1.72343196]
[1748905750522,0.5562758,105810.0,105800.0,1.59348519]
[1748905750715,0.5562758,105810.0,105800.0,1.72343196]
[1748905751325,0.0065444,105810.0,105800.0,1.67577044]
[1748905751528,0.1954758,105810.0,105800.0,1.67577044]
[1748905751725,0.1952758,105810.0,105800.0,1.58770549]
[1748905751929,0.1954758,105810.0,105800.0,1.63536173]
[1748905752531,0.1954758,105810.0,105800.0,1.58770549]
[1748905752923,0.1954758,105810.0,105800.0,0.94279872]
[1748905753126,0.1954758,105810.0,105800.0,1.45599872]
[1748905753429,0.1954758,105810.0,105800.0,1.58594549]
[1748905753826,0.1954758,105810.0,105800.0,1.45599872]
[1748905754021,0.1954758,105810.0,105800.0,1.58594549]
[1748905755027,0.1954758,105810.0,105800.0,1.50210101]
[1748905756332,0.1954758,105810.0,105800.0,1.37215424]
[1748905756530,0.1954758,105810.0,105800.0,1.50210101]
[1748905756923,0.5562758,105810.0,105800.0,1.50210101]
[1748905757633,0.5562758,105810.0,105800.0,0.51876494]
[1748905757634,0.68622257,105810.0,105800.0,0.51876494]
[1748905757831,0.69622257,105810.0,105800.0,1.32945489]
[1748905758026,0.77632257,105810.0,105800.0,1.32945489]
[1748905758228,0.6463758,105810.0,105800.0,1.32945489]
[1748905758434,0.6867758,105810.0,105800.0,1.32905489]
[1748905758731,0.6867758,105810.0,105800.0,1.32937489]
[1748905759331,0.6867758,105810.0,105800.0,0.81773489]
[1748905759529,0.6867758,105810.0,105800.0,1.32921489]
[1748905759930,0.5662758,105810.0,105800.0,1.32905489]
[1748905760237,0.5662758,105810.0,105800.0,1.33129489]
[1748905760934,0.6071758,105810.0,105800.0,1.33129489]
[1748905761129,0.6468758,105810.0,105800.0,1.33129489]
[1748905761544,0.6468758,105810.0,105800.0,1.41943909]
[1748905763534,0.77682257,105810.0,105800.0,1.19178879]
[1748905763729,0.77682257,105810.0,105800.0,0.67782879]
[1748905764131,0.6468758,105810.0,105800.0,1.38129989]
[1748905765840,0.6468758,105810.0,105800.0,1.42299989]
[1748905766633,0.6466758,105810.0,105800.0,1.42299989]
[1748905766832,0.6468758,105810.0,105800.0,1.42299989]
[1748905768043,0.6468758,105810.0,105800.0,1.42095989]
[1748905768746,0.6468758,105810.0,105800.0,1.37885989]
[1748905768932,0.6468758,105810.0,105800.0,0.86677989]
[1748905769136,0.6468758,105810.0,105800.0,1.41847989]
[1748905769745,0.6468758,105810.0,105800.0,1.41807989]
[1748905771544,0.77682257,105810.0,105800.0,1.41743989]
[1748905771748,0.6468758,105810.0,105800.0,1.14958879]
[1748905772639,0.77682257,105810.0,105800.0,0.4181442]
[1748905772836,0.77682257,105810.0,105800.0,0.44153248]
[1748905772837,0.83583786,105810.0,105800.0,0.44153248]
[1748905773036,0.83583786,105810.0,105800.0,0.23223248]
[1748905773037,1.19034986,105810.0,105800.0,0.23223248]
[1748905773237,1.20034986,105810.0,105800.0,0.13223248]
[1748905773531,0.91583786,105810.0,105800.0,0.13223248]
[1748905774849,0.90583786,105810.0,105800.0,0.13223248]
[1748905775335,0.90583786,105810.0,105800.0,0.07553248]
[1748905775839,0.90583786,105810.0,105800.0,0.07550265]
[1748905776040,0.90583786,105810.0,105800.0,0.04405845]
[1748905777050,0.90583786,105810.0,105800.0,0.55345845]
[1748905778446,0.90583786,105810.0,105800.0,0.69345845]
[1748905778648,0.77569109,105810.0,105800.0,0.69345845]
[1748905778947,0.90583786,105810.0,105800.0,0.69345845]
[1748905781045,0.84682257,105810.0,105800.0,0.6494]
[1748905782649,0.71262626,105810.0,105800.0,0.8383511]
[1748905782854,0.71262626,105810.0,105800.0,1.1904511]
[1748905783048,0.71242626,105810.0,105800.0,1.1904511]
[1748905783554,0.71262626,105810.0,105800.0,1.1904511]
[1748905784647,0.84257303,105810.0,105800.0,1.1904511]
[1748905785553,0.84257303,105810.0,105800.0,1.20978532]
[1748905785749,0.84682257,105810.0,105800.0,1.20978532]
[1748905786758,0.84682257,105810.0,105800.0,0.56813422]
[1748905786944,0.84682257,105810.0,105800.0,1.07453422]
[1748905787150,0.84682257,105810.0,105800.0,1.03313422]
[1748905787345,0.1889511,105800.0,105790.0,0.64258475]
[1748905787551,0.79799787,105800.0,105790.0,0.41480825]
[1748905787750,0.79799787,105800.0,105790.0,0.92100825]
[1748905787952,0.80799787,105800.0,105790.0,0.92100825]
[1748905788256,0.80799787,105800.0,105790.0,0.83714666]
[1748905788855,0.80799787,105800.0,105790.0,0.83914666]
[1748905789053,0.80799787,105800.0,105790.0,0.84314666]
[1748905789656,0.80799787,105800.0,105790.0,0.88719653]
[1748905790149,0.79799787,105800.0,105790.0,0.88719653]
[1748905790851,0.80224741,105800.0,105790.0,0.88719653]
[1748905791053,0.80224741,105800.0,105790.0,0.93124471]
[1748905791951,0.80224741,105800.0,105790.0,0.88719484]
[1748905794457,0.80224741,105800.0,105790.0,0.38099484]
[1748905794656,1.07224741,105800.0,105790.0,0.50944]
[1748905794858,1.07224741,105800.0,105790.0,0.006]
[1748905795058,1.07224741,105800.0,105780.0,0.18382816]
[1748905795260,1.07224741,105800.0,105780.0,0.55404816]
[1748905795261,0.75721577,105790.0,105780.0,0.55404816]
[1748905795456,0.78721577,105790.0,105780.0,1.00054816]
[1748905795656,0.80662371,105790.0,105780.0,1.00038816]
[1748905796060,0.80662371,105790.0,105780.0,0.46252]
[1748905796259,0.80662371,105790.0,105780.0,0.9652]
[1748905797058,0.80662371,105790.0,105780.0,0.9742]
[1748905797258,0.80662371,105790.0,105780.0,1.0187]
[1748905797454,0.67667694,105790.0,105780.0,1.2076868]
[1748905797757,0.67667694,105790.0,105780.0,1.0187]
[1748905797961,0.67667694,105790.0,105780.0,1.0247]
[1748905798356,0.67667694,105790.0,105780.0,1.02366]
[1748905798567,0.80662371,105790.0,105780.0,1.02366]
[1748905798761,0.67667694,105790.0,105780.0,1.02366]
[1748905801461,0.80662371,105790.0,105780.0,0.339]
[1748905801665,0.80662371,105790.0,105780.0,0.8388]
[1748905801862,0.67667694,105790.0,105780.0,0.8388]
[1748905802063,0.80662371,105790.0,105780.0,0.8742]
[1748905803566,0.67667694,105790.0,105780.0,1.0631868]
[1748905803766,0.63737694,105790.0,105780.0,1.0631868]
[1748905803967,0.63737694,105790.0,105780.0,1.0995868]
[1748905804266,0.63757694,105790.0,105780.0,1.22953357]
[1748905804564,0.01940794,105790.0,105780.0,1.58033357]
[1748905804770,0.01940794,105790.0,105780.0,1.75732142]
[1748905804965,0.01960794,105790.0,105780.0,1.58128947]
[1748905805160,0.20837694,105790.0,105780.0,1.58128947]
[1748905805361,0.20857694,105790.0,105780.0,1.71123624]
[1748905805674,0.20857694,105790.0,105780.0,1.88599765]
[1748905805973,0.189169,105790.0,105780.0,1.88599765]
[1748905807068,0.0002,105790.0,105780.0,1.83242573]
[1748905807265,0.00444954,105790.0,105780.0,1.83242573]
[1748905807462,0.19341854,105790.0,105780.0,1.70247896]
[1748905807659,0.19341854,105790.0,105780.0,1.83242573]
[1748905808165,0.19341854,105790.0,105780.0,1.70296821]
[1748905808367,0.19341854,105790.0,105780.0,1.70296769]
[1748905811273,0.00444954,105790.0,105780.0,1.70296769]
[1748905811669,0.00424954,105790.0,105780.0,1.70296769]
[1748905811874,0.00444954,105790.0,105780.0,1.57207357]
[1748905813773,0.00444954,105790.0,105780.0,1.4421268]
[1748905814081,0.00444954,105790.0,105780.0,1.57207357]
[1748905814774,0.19341844,105790.0,105780.0,1.4421268]
[1748905815071,0.00444954,105790.0,105780.0,1.57207357]
[1748905815265,0.00444954,105790.0,105780.0,1.07227357]
[1748905815460,0.19341854,105790.0,105780.0,1.65344713]
[1748905816267,0.00444954,105790.0,105780.0,1.65344713]
[1748905816568,0.19341854,105790.0,105780.0,1.70049583]
[1748905817066,0.19341854,105790.0,105780.0,1.57055155]
[1748905817267,0.19341854,105790.0,105780.0,1.70049832]
[1748905817670,0.19341844,105790.0,105780.0,1.70049832]
[1748905817874,0.00444954,105790.0,105780.0,1.70049832]
[1748905818770,0.19341854,105790.0,105780.0,1.70049832]
[1748905819280,0.19341854,105790.0,105780.0,1.81795967]
[1748905819476,0.19341854,105790.0,105780.0,1.68705492]
[1748905819677,0.19341854,105790.0,105780.0,1.55710815]
[1748905819878,0.19341854,105790.0,105780.0,1.73410611]
[1748905820071,0.00444954,105790.0,105780.0,1.73410611]
[1748905820266,0.19341854,105790.0,105780.0,1.73410611]
[1748905821366,0.00444954,105790.0,105780.0,1.73410611]
[1748905821867,0.19341854,105790.0,105780.0,1.73410611]
[1748905823576,0.19341854,105790.0,105780.0,1.73408643]
[1748905824574,0.19341854,105790.0,105780.0,1.73408724]
[1748905825975,0.19341854,105790.0,105780.0,1.73408851]
[1748905826179,0.00444954,105790.0,105780.0,1.94787915]
[1748905826379,0.00444954,105790.0,105780.0,1.4396468]
[1748905826574,0.00424954,105790.0,105780.0,1.4396468]
[1748905826781,0.00444954,105790.0,105780.0,1.56959357]
[1748905827086,0.19341854,105790.0,105780.0,1.69230815]
[1748905827274,0.23181854,105790.0,105780.0,1.69230815]
[1748905827583,0.23181854,105790.0,105780.0,1.82225492]
[1748905828580,0.59261854,105790.0,105780.0,0.7189668]
[1748905828881,0.59261854,105790.0,105780.0,1.2141668]
[1748905828882,0.62951854,105790.0,105780.0,1.2141668]
[1748905829085,0.62951854,105790.0,105780.0,1.3022746]
[1748905829279,0.62951854,105790.0,105780.0,0.6696346]
[1748905829479,0.62951854,105790.0,105780.0,0.58105452]
[1748905829480,0.75946531,105790.0,105780.0,0.58105452]
[1748905829684,0.75946531,105790.0,105780.0,1.17222207]
[1748905829876,0.75946531,105790.0,105780.0,1.17222676]
[1748905830189,0.62951854,105790.0,105780.0,1.23097979]
[1748905830871,0.62951854,105790.0,105780.0,0.73597979]
[1748905831074,0.62951854,105790.0,105780.0,1.18342835]
[1748905831279,0.62951854,105790.0,105780.0,1.09952903]
[1748905831480,0.62951854,105790.0,105780.0,1.18342835]
[1748905831780,0.62951854,105790.0,105780.0,0.60504903]
[1748905831983,0.62951854,105790.0,105780.0,1.28851583]
[1748905832584,0.62951854,105790.0,105780.0,1.09952903]
[1748905832886,0.62951854,105790.0,105780.0,0.82505303]
[1748905832887,0.76946531,105790.0,105780.0,0.82505303]
[1748905833082,0.76946531,105790.0,105780.0,0.33105303]
[1748905833386,0.76946531,105790.0,105780.0,0.2723]
[1748905833387,1.11399731,105790.0,105780.0,0.2723]
[1748905833578,0.1889868,105780.0,105770.0,1.70823469]
[1748905833888,0.80533357,105780.0,105770.0,2.06806252]
[1748905834385,0.6653868,105780.0,105770.0,2.06806252]
[1748905834590,0.79533357,105780.0,105770.0,2.06806252]
[1748905834773,0.6653868,105780.0,105770.0,2.25706722]
[1748905834978,0.6653868,105780.0,105770.0,2.47882322]
[1748905835174,0.1156,105780.0,105770.0,2.60876999]
[1748905835478,0.0766,105780.0,105770.0,2.91621764]
[1748905835681,0.039,105780.0,105770.0,3.13504112]
[1748905835881,0.0388,105780.0,105770.0,3.13504112]
[1748905836186,0.039,105780.0,105770.0,3.13504112]
[1748905836383,0.0388,105780.0,105770.0,3.00509435]
[1748905836596,0.0388,105780.0,105770.0,3.13404112]
[1748905836597,0.04,105780.0,105770.0,3.13404112]
[1748905836785,0.04,105780.0,105770.0,3.06851313]
[1748905836990,0.04,105780.0,105770.0,3.06251313]
[1748905837284,0.04,105780.0,105770.0,2.93956636]
[1748905837482,0.04,105780.0,105770.0,3.06951313]
[1748905837890,0.04,105780.0,105770.0,2.93956636]
[1748905838088,0.04,105780.0,105770.0,3.06951313]
[1748905838583,0.04,105780.0,105770.0,3.06948521]
[1748905839593,0.04,105780.0,105770.0,3.0224301]
[1748905839788,0.2289868,105780.0,105770.0,3.06948747]
[1748905840292,0.2653868,105780.0,105770.0,3.06948747]
[1748905841692,0.2653868,105780.0,105770.0,2.9395407]
[1748905841896,0.2653868,105780.0,105770.0,2.44232747]
[1748905842089,0.2653868,105780.0,105770.0,3.06904747]
[1748905842286,0.2653868,105780.0,105770.0,3.06904864]
[1748905842588,0.0764,105780.0,105770.0,3.06904864]
[1748905842892,0.04,105780.0,105770.0,3.06904864]
[1748905843092,0.2287868,105780.0,105770.0,3.06904864]
[1748905843289,0.2289868,105780.0,105770.0,3.08103136]
[1748905843691,0.2289868,105780.0,105770.0,3.00466805]
[1748905843889,0.2289868,105780.0,105770.0,3.13461482]
[1748905844892,0.2661868,105780.0,105770.0,3.13461482]
[1748905845684,0.2661868,105780.0,105770.0,3.13293482]
[1748905846294,0.2661868,105780.0,105770.0,3.06742152]
[1748905847192,0.2661868,105780.0,105770.0,2.57674152]
[1748905847389,0.2661868,105780.0,105770.0,3.06682152]
[1748905847694,0.0772,105780.0,105770.0,3.06682152]
[1748905847889,0.0772,105780.0,105770.0,2.9358333]
[1748905848089,0.2289868,105780.0,105770.0,2.9358333]
[1748905848695,0.2287868,105780.0,105770.0,2.80588653]
[1748905848896,0.2289868,105780.0,105770.0,2.9358333]
[1748905850783,0.27273634,105780.0,105770.0,1.70434653]
[1748905850986,0.27273634,105780.0,105770.0,2.47064623]
[1748905850987,0.63353634,105780.0,105770.0,2.47064623]
[1748905851183,0.63353634,105780.0,105770.0,2.4411678]
[1748905851388,0.63353634,105780.0,105770.0,2.42928807]
[1748905851683,0.63353634,105780.0,105770.0,1.94044807]
[1748905851998,0.63353634,105780.0,105770.0,2.2979481]
[1748905853192,0.63353634,105780.0,105770.0,2.35676501]
[1748905853396,0.63353634,105780.0,105770.0,2.44093113]
[1748905853883,0.63353634,105780.0,105770.0,2.44092909]
[1748905854087,0.63353634,105780.0,105770.0,1.76336439]
[1748905854294,0.63353634,105780.0,105770.0,1.7654627]
[1748905854489,0.63353634,105780.0,105770.0,1.29649556]
[1748905854689,0.63353634,105780.0,105770.0,1.38963855]
[1748905854991,0.64353634,105780.0,105770.0,1.38963855]
[1748905855693,0.64353634,105780.0,105770.0,1.48550026]
[1748905857198,0.64353634,105780.0,105770.0,1.47373262]
[1748905857399,0.64353634,105780.0,105770.0,1.47379836]
[1748905857599,0.64353634,105780.0,105770.0,1.38970429]
[1748905857898,0.63353634,105780.0,105770.0,1.4738081]
[1748905860796,0.63353634,105780.0,105770.0,1.15599457]
[1748905861003,0.63353634,105780.0,105770.0,1.47629161]
[1748905861603,0.63353634,105780.0,105770.0,0.98469161]
[1748905861897,0.63353634,105780.0,105770.0,1.42906308]
[1748905862203,0.63353634,105780.0,105770.0,1.4762658]
[1748905862508,0.63353634,105780.0,105770.0,1.42906308]
[1748905864000,0.63353634,105780.0,105770.0,1.37234308]
[1748905864197,0.63353634,105780.0,105770.0,1.28827927]
[1748905864394,0.76348311,105780.0,105770.0,0.73897618]
[1748905864599,0.76348311,105780.0,105770.0,0.56364145]
[1748905864795,0.76348311,105780.0,105770.0,1.05516145]
[1748905864999,0.76348311,105780.0,105770.0,1.24416575]
[1748905865404,0.76348311,105780.0,105770.0,0.99634314]
[1748905865803,0.76348311,105780.0,105770.0,0.37046314]
[1748905866108,0.77348311,105780.0,105770.0,0.37046314]
[1748905866306,0.77348311,105780.0,105760.0,0.3659609]
[1748905866307,0.1890043,105770.0,105760.0,0.14925709]
[1748905866609,0.68849695,105770.0,105760.0,0.36371878]
[1748905866803,0.91299172,105770.0,105760.0,0.40790627]
[1748905867195,1.16299172,105770.0,105760.0,0.36371878]
[1748905867396,1.16299172,105770.0,105750.0,0.05881831]
[1748905867397,0.1890222,105760.0,105750.0,0.05881831]
[1748905867596,0.76736897,105760.0,105750.0,0.69216]
[1748905867801,0.80386897,105760.0,105750.0,0.0762737]
[1748905868002,0.1890401,105750.0,105740.0,0.62474234]
[1748905868310,0.84058687,105750.0,105740.0,0.52214234]
[1748905869210,0.84058687,105750.0,105740.0,0.98520034]
[1748905869410,0.7106401,105750.0,105740.0,0.49320034]
[1748905869712,0.7108401,105750.0,105740.0,0.98508034]
[1748905869899,0.7108401,105750.0,105740.0,1.06168034]
[1748905871504,0.7108401,105750.0,105740.0,0.56980034]
[1748905871709,0.84078687,105750.0,105740.0,1.06076034]
[1748905871904,0.84078687,105750.0,105740.0,1.02386034]
[1748905873312,0.84078687,105750.0,105740.0,0.98816034]
[1748905875608,0.84078687,105750.0,105740.0,1.02566034]
[1748905876212,0.7108401,105750.0,105740.0,1.02566034]
[1748905876617,0.7108401,105750.0,105740.0,1.06206034]
[1748905878614,0.7108401,105750.0,105740.0,1.00534034]
[1748905878809,0.6741401,105750.0,105740.0,1.00534034]
[1748905879012,0.6376401,105750.0,105740.0,1.00534034]
[1748905881309,0.23108964,105750.0,105740.0,1.26432711]
[1748905882215,0.23108964,105750.0,105740.0,1.32305127]
[1748905885118,0.23108964,105750.0,105740.0,1.1931045]
[1748905885707,0.72183641,105750.0,105740.0,0.53682416]
[1748905885906,0.72183641,105750.0,105740.0,0.96498]
[1748905886113,0.75853641,105750.0,105740.0,0.96498]
[1748905886616,0.75853641,105750.0,105740.0,1.1540379]
[1748905886812,0.62858964,105750.0,105740.0,1.1540379]
[1748905888417,0.62858964,105750.0,105740.0,1.1863379]
[1748905888622,0.62858964,105750.0,105740.0,1.1336179]
[1748905889421,0.62858964,105750.0,105740.0,1.19234206]
[1748905893324,0.59188964,105750.0,105740.0,1.19234206]
[1748905894030,0.59188964,105750.0,105740.0,1.280581]
[1748905894323,0.62628964,105750.0,105740.0,1.280581]
[1748905896523,0.62628964,105750.0,105740.0,1.22185684]
[1748905896831,0.62628964,105750.0,105740.0,1.2808702]
[1748905897519,0.62628964,105750.0,105740.0,1.22185684]
[1748905897830,0.62628964,105750.0,105740.0,0.60237684]
[1748905898027,0.62628964,105750.0,105740.0,1.21653684]
[1748905898725,0.23108964,105750.0,105740.0,1.28976361]
[1748905899126,0.23088964,105750.0,105740.0,1.28976361]
[1748905899328,0.23108964,105750.0,105740.0,1.28976361]
[1748905901229,0.59168964,105750.0,105740.0,1.28976361]
[1748905901522,0.59188964,105750.0,105740.0,1.15813684]
[1748905901730,0.62608964,105750.0,105740.0,1.15813684]
[1748905902328,0.62608964,105750.0,105740.0,1.15785684]
[1748905902723,0.26528964,105750.0,105740.0,1.15785684]
[1748905902924,0.26528964,105750.0,105740.0,0.96879894]
[1748905903131,0.75603641,105750.0,105740.0,0.96835894]
[1748905903327,0.75603641,105750.0,105740.0,0.48575894]
[1748905903630,0.75603641,105750.0,105740.0,1.15757684]
[1748905903832,0.62608964,105750.0,105740.0,1.15757684]
[1748905905331,0.62608964,105750.0,105740.0,0.93173894]
[1748905905922,0.62608964,105750.0,105740.0,1.12079684]
[1748905908734,0.62608964,105750.0,105740.0,1.06407684]
[1748905908938,0.62608964,105750.0,105740.0,1.28023684]
[1748905909438,0.26528964,105750.0,105740.0,1.28023684]
[1748905909730,0.62608964,105750.0,105740.0,1.28023684]
[1748905909933,0.62608964,105750.0,105740.0,1.41156247]
[1748905910935,0.62608964,105750.0,105740.0,1.28023684]
[1748905913037,0.66098964,105750.0,105740.0,1.28023684]
[1748905913236,0.66098964,105750.0,105740.0,1.31215684]
[1748905915344,0.26528964,105750.0,105740.0,1.47580361]
[1748905915535,0.26528964,105750.0,105740.0,1.34585684]
[1748905915847,0.59188964,105750.0,105740.0,1.47580361]
[1748905916234,0.59168964,105750.0,105740.0,1.47580361]
[1748905916539,0.59188964,105750.0,105740.0,1.47580361]
[1748905917545,0.59188964,105750.0,105740.0,1.34585684]
[1748905917736,0.59188964,105750.0,105740.0,1.47580361]
[1748905918239,0.59188964,105750.0,105740.0,0.70339684]
[1748905918444,0.66098964,105750.0,105740.0,1.12153894]
[1748905918641,0.66098964,105750.0,105740.0,1.34109684]
[1748905918836,0.66098964,105750.0,105740.0,1.28837684]
[1748905920940,0.66098964,105750.0,105740.0,1.43172213]
[1748905921138,0.62748964,105750.0,105740.0,1.43172213]
[1748905921745,0.62728964,105750.0,105740.0,1.43172213]
[1748905921939,0.62748964,105750.0,105740.0,1.46782213]
[1748905923646,0.62748964,105750.0,105740.0,1.5977689]
[1748905923853,0.62748964,105750.0,105740.0,1.45442361]
[1748905924547,0.62748964,105750.0,105740.0,0.97638361]
[1748905924753,0.62748964,105750.0,105740.0,1.45270361]
[1748905925444,0.62748964,105750.0,105740.0,1.32275684]
[1748905925648,0.62748964,105750.0,105740.0,1.45270361]
[1748905926334,0.62748964,105750.0,105740.0,1.32275684]
[1748905928542,0.62748964,105750.0,105740.0,0.52821894]
[1748905928739,0.63748964,105750.0,105740.0,1.00001894]
[1748905928946,0.67078964,105750.0,105740.0,0.99997894]
[1748905929249,0.67078964,105750.0,105740.0,0.96541894]
[1748905930654,0.67078964,105750.0,105740.0,1.15447684]
[1748905931256,0.67078964,105750.0,105740.0,1.19077684]
[1748905931453,0.67078964,105750.0,105740.0,1.22507684]
[1748905931955,0.67078964,105750.0,105740.0,1.25937684]
[1748905932551,0.66078964,105750.0,105740.0,1.25937684]
[1748905934161,0.23108964,105750.0,105740.0,1.38932361]
[1748905934450,0.23108964,105750.0,105740.0,1.37302467]
[1748905934656,0.23088964,105750.0,105740.0,1.4573759]
[1748905934954,0.23108964,105750.0,105740.0,1.4573759]
[1748905935154,0.26568964,105750.0,105740.0,1.4573759]
[1748905935660,0.62648964,105750.0,105740.0,1.2430779]
[1748905935843,0.62648964,105750.0,105740.0,1.37302467]
[1748905937555,0.62648964,105750.0,105740.0,1.2430779]
[1748905937761,0.62648964,105750.0,105740.0,1.37302467]
[1748905938459,0.62648964,105750.0,105740.0,0.89806467]
[1748905938762,0.66218964,105750.0,105740.0,1.37230467]
[1748905939153,0.66218964,105750.0,105740.0,1.1856379]
[1748905940255,0.66218964,105750.0,105740.0,1.26998913]
[1748905940662,0.66218964,105750.0,105740.0,1.31733887]
[1748905940856,0.66218964,105750.0,105740.0,1.26998913]
[1748905942863,0.66218964,105750.0,105740.0,1.31733985]
[1748905943264,0.66218964,105750.0,105740.0,1.23298862]
[1748905943457,0.66218964,105750.0,105740.0,1.31733362]
[1748905943658,0.66218964,105750.0,105740.0,1.23298862]
[1748905944457,0.66218964,105750.0,105740.0,1.32897996]
[1748905945256,0.66218964,105750.0,105740.0,1.22391986]
[1748905945462,0.66218964,105750.0,105740.0,0.93887072]
[1748905945668,0.79213641,105750.0,105740.0,0.93887072]
[1748905945868,0.79213641,105750.0,105740.0,1.12792852]
[1748905946165,0.66218964,105750.0,105740.0,1.21227903]
[1748905946567,0.66218964,105750.0,105740.0,1.21228239]
[1748905947658,0.66218964,105750.0,105740.0,1.12793188]
[1748905948066,0.66218964,105750.0,105740.0,1.21227973]
[1748905948759,0.66218964,105750.0,105740.0,1.25352555]